fUST/lending_fUST_20241026
["ID","MTS","AMOUNT","RATE_DAILY","PERIOD"]
[340816245,1729872455676,310.0,0.00019,15]
[340816246,1729872579070,13632.81,0.00011,2]
[340816247,1729872579104,8171.28,0.00011,2]
[340816281,1729872632008,-204.722471,0.00013567,2]
[340816282,1729872632017,-457.033847,0.00013567,2]
[340816283,1729872632027,-159.22859,0.00013567,2]
[340816284,1729872632038,-204.722471,0.00013736,2]
[340816287,1729872632048,-457.033847,0.00013736,2]
[340816288,1729872632058,-159.22859,0.00013736,2]
[340816290,1729872632068,-204.722471,0.00013906,2]
[340816292,1729872632078,-457.033847,0.00013906,2]
[340816294,1729872632088,-159.22859,0.00013906,2]
[340816297,1729872632099,-390.0,0.00013973,2]
[340816299,1729872632108,-200.0,0.00013973,2]
[340816301,1729872632118,-932.2607553,0.00014008,2]
[340816328,1729872632359,-186.352451,0.00014033,2]
[340816330,1729872632369,-300.0,0.00014064,2]
[340816332,1729872632380,-300.0,0.00014065,2]
[340816334,1729872632389,-404.4878492,0.00014074,2]
[340816336,1729872632399,-204.722471,0.00014075,2]
[340816338,1729872632411,-457.033847,0.00014075,2]
[340816340,1729872632422,-159.22859,0.00014075,2]
[340816342,1729872632432,-567.797,0.00014182,2]
[340816344,1729872632442,-3200.0,0.00014189,2]
[340816346,1729872632452,-500.0,0.00014189,2]
[340816348,1729872632463,-204.722471,0.00014245,2]
[340816351,1729872632473,-457.033847,0.00014245,2]
[340816353,1729872632483,-159.22859,0.00014245,2]
[340816354,1729872632492,-600.0,0.000144,2]
[340816357,1729872632502,-983.61177045,0.000144,2]
[340816359,1729872632512,-153.0,0.00014877,2]
[340816361,1729872632523,-383.1758612,0.00014877,2]
[340816363,1729872632534,-153.0,0.00014877,2]
[340816365,1729872632544,-1695.86,0.000154,2]
[340816367,1729872632555,-420.0,0.00015407,2]
[340816369,1729872632565,-600.0,0.00015446,2]
[340816371,1729872632574,-600.0,0.00015607,2]
[340816373,1729872632584,-500.33589352,0.0001565,2]
[340816375,1729872632594,-500.0,0.0001565,2]
[340816377,1729872632604,-500.61990762,0.0001565,2]
[340816378,1729872632613,-500.3261136,0.0001565,2]
[340816379,1729872632623,-500.0,0.0001565,2]
[340816380,1729872632633,-5592.60115101,0.00015652,2]
[340816381,1729872632642,-500.0,0.00015686,2]
[340816382,1729872632652,-153.0,0.00015699,2]
[340816383,1729872632666,-153.0,0.00015699,2]
[340816384,1729872632676,-600.0,0.00015768,2]
[340816385,1729872632687,-302.49797494,0.00015789,2]
[340816386,1729872632696,-433.44914603,0.00015789,2]
[340816387,1729872632706,-500.0,0.00015789,2]
[340816388,1729872632718,-500.0,0.00015789,2]
[340816389,1729872632728,-466.7336221,0.00015789,2]
[340816390,1729872632740,-500.0,0.00015789,2]
[340816391,1729872632750,-500.0,0.00015789,2]
[340816392,1729872632761,-500.0,0.00015789,2]
[340816393,1729872632770,-501.83538923,0.00015789,2]
[340816394,1729872632780,-560.7470573,0.00015789,2]
[340816395,1729872632792,-500.34434384,0.00015789,2]
[340816396,1729872632802,-500.65651848,0.00015789,2]
[340816397,1729872632813,-500.0,0.00015789,2]
[340816398,1729872632823,-232.0,0.0001586,2]
[340816399,1729872632833,-500.0,0.0001586,2]
[340816400,1729872632843,-876.0314549,0.0001591,2]
[340816401,1729872632854,-1000.0,0.00015924,2]
[340816402,1729872632865,-600.0,0.00015929,2]
[340816403,1729872632875,-3000.0,0.00016,2]
[340816404,1729872632885,-3000.0,0.0001601,2]
[340816405,1729872632895,-468.041,0.0001601,2]
[340816406,1729872632904,-3000.0,0.0001602,2]
[340816407,1729872632914,-3000.0,0.0001603,2]
[340816408,1729872632925,-3000.0,0.0001604,2]
[340816409,1729872632935,-3000.0,0.0001605,2]
[340816410,1729872632945,-3000.0,0.0001606,2]
[340816411,1729872632955,-1000.0,0.00016063,2]
[340816412,1729872632965,-1013.15540841,0.00016063,2]
[340816413,1729872632975,-510.72929659,0.00016063,2]
[340816414,1729872632985,-3000.0,0.0001607,2]
[340816415,1729872632994,-3000.0,0.0001608,2]
[340816416,1729872633004,-500.0,0.00016083,2]
[340816417,1729872633015,-156.93048246,0.00016089,2]
[340816418,1729872633025,-157.44084035,0.00016089,2]
[340816419,1729872633037,-3000.0,0.0001609,2]
[340816420,1729872633048,-3000.0,0.000161,2]
[340816421,1729872633058,-3000.0,0.0001611,2]
[340816422,1729872633068,-3000.0,0.0001612,2]
[340816423,1729872633078,-3888.212289,0.0001613,2]
[340816424,1729872633089,-500.0,0.00016357,2]
[340816425,1729872633099,-1500.0,0.00016463,2]
[340816426,1729872633110,-4418.0,0.000167,2]
[340816427,1729872633120,-587.0,0.00016878,2]
[340816428,1729872633130,-2000.0,0.00016932,2]
[340816429,1729872633140,-151.0,0.00016986,2]
[340816430,1729872633151,-1318.98760375,0.00017,2]
[340816431,1729872633162,-151.0,0.0001726,2]
[340816432,1729872633172,-151.0,0.00017398,2]
[340816433,1729872633183,-494.01832008,0.00017434,2]
[340816434,1729872633193,-1541.52326976,0.0001745,2]
[340816435,1729872633203,-151.0,0.00017534,2]
[340816436,1729872633213,-1012.38209563,0.0001754,2]
[340816437,1729872633232,-20032.97820567,0.0001754,2]
[340816438,1729872633245,-494.01832005,0.00017548,2]
[340816439,1729872633255,-25810.3781847,0.0001755,2]
[340816440,1729872633266,-2916.0,0.0001757,2]
[340816441,1729872633277,-1547.29228226,0.000176,2]
[340816442,1729872633287,-494.01832005,0.00017662,2]
[340816443,1729872633297,-494.01832005,0.00017776,2]
[340816444,1729872633307,-151.0,0.00017808,2]
[340816445,1729872633320,-1000.0,0.0001786,2]
[340816446,1729872633330,-21045.3603013,0.0001787,2]
[340816447,1729872633341,-500.0,0.00017873,2]
[340816448,1729872633351,-500.0,0.00017873,2]
[340816449,1729872633361,-25810.3781847,0.0001788,2]
[340816450,1729872633370,-500.0,0.00017888,2]
[340816451,1729872633381,-500.0,0.00017888,2]
[340816452,1729872633391,-389.60215002,0.00017888,2]
[340816453,1729872633400,-500.0,0.00017888,2]
[340816454,1729872633411,-500.0,0.00017888,2]
[340816455,1729872633421,-500.0,0.00017888,2]
[340816456,1729872633431,-500.0,0.00017888,2]
[340816457,1729872633442,-500.0,0.00017888,2]
[340816458,1729872633453,-500.0,0.00017888,2]
[340816459,1729872633464,-500.0,0.00017888,2]
[340816460,1729872633475,-457.40590077,0.00017888,2]
[340816461,1729872633486,-500.0,0.00017888,2]
[340816462,1729872633497,-500.0,0.00017888,2]
[340816463,1729872633507,-151.0,0.0001789,2]
[340816464,1729872633516,-190.357427,0.0001789,2]
[340816465,1729872633527,-151.0,0.0001789,2]
[340816466,1729872633538,-151.0,0.0001789,2]
[340816467,1729872633548,-151.0,0.0001789,2]
[340816468,1729872633557,-151.0,0.0001789,2]
[340816469,1729872633567,-151.0,0.0001789,2]
[340816470,1729872633578,-151.0,0.0001789,2]
[340816471,1729872633588,-173.798704,0.0001789,2]
[340816472,1729872633599,-173.798704,0.0001789,2]
[340816473,1729872633609,-151.0,0.0001789,2]
[340816474,1729872633619,-197.560701,0.0001789,2]
[340816475,1729872633629,-151.0,0.0001789,2]
[340816476,1729872633640,-272.485169,0.0001789,2]
[340816477,1729872633650,-151.0,0.0001789,2]
[340816478,1729872633660,-151.0,0.0001789,2]
[340816479,1729872633670,-151.0,0.0001789,2]
[340816480,1729872633680,-151.0,0.0001789,2]
[340816481,1729872633691,-151.0,0.0001789,2]
[340816482,1729872633701,-151.0,0.0001789,2]
[340816483,1729872633712,-494.01832005,0.0001789,2]
[340816484,1729872633723,-11571.2379111,0.000179,2]
[340816485,1729872633736,-660.0,0.000179,2]
[340816531,1729872638150,-500.0,0.0001789,2]
[340816533,1729872638160,-1445.90996603,0.000179,2]
[340816535,1729872638170,-667.55538221,0.000179,2]
[340816537,1729872638180,-1241.76934659,0.0001794,2]
[340816546,1729872638256,-19803.59095471,0.0001794,2]
[340816548,1729872638266,-6139.54057305,0.0001795,2]
[340816553,1729872638310,-19670.83761165,0.0001795,2]
[340816555,1729872638321,-151.0,0.0001795,2]
[340816557,1729872638331,-559.704976,0.0001795,2]
[340816559,1729872638340,-559.704976,0.0001795,2]
[340816561,1729872638350,-151.0,0.0001795,2]
[340816563,1729872638359,-151.0,0.0001795,2]
[340816565,1729872638368,-151.0,0.0001795,2]
[340816567,1729872638378,-151.0,0.0001795,2]
[340816569,1729872638388,-202.993901,0.0001795,2]
[340816571,1729872638397,-151.0,0.0001795,2]
[340816573,1729872638406,-202.993901,0.0001795,2]
[340816575,1729872638416,-308.248586,0.0001795,2]
[340816577,1729872638426,-308.248586,0.0001795,2]
[340816579,1729872638435,-151.0,0.0001795,2]
[340816581,1729872638444,-628.441196,0.0001796,2]
[340816583,1729872638453,-628.441196,0.0001796,2]
[340816585,1729872638463,-151.0,0.0001796,2]
[340816587,1729872638472,-151.0,0.0001796,2]
[340816588,1729872638481,-151.0,0.0001796,2]
[340816590,1729872638490,-151.0,0.0001796,2]
[340816592,1729872638500,-151.0,0.0001796,2]
[340816594,1729872638511,-151.0,0.0001796,2]
[340816596,1729872638521,-219.612472,0.0001796,2]
[340816598,1729872638530,-151.0,0.0001796,2]
[340816600,1729872638541,-474.116489,0.0001796,2]
[340816602,1729872638551,-474.116489,0.0001796,2]
[340816604,1729872638560,-185.268227,0.0001796,2]
[340816605,1729872638570,-151.0,0.0001796,2]
[340816606,1729872638580,-151.0,0.0001796,2]
[340816607,1729872638590,-151.0,0.0001796,2]
[340816608,1729872638599,-151.0,0.0001796,2]
[340816609,1729872638609,-269.913018,0.0001796,2]
[340816610,1729872638618,-151.0,0.0001796,2]
[340816611,1729872638628,-151.0,0.0001796,2]
[340816612,1729872638637,-151.0,0.0001796,2]
[340816613,1729872638648,-151.0,0.0001796,2]
[340816614,1729872638658,-151.0,0.0001796,2]
[340816616,1729872638667,-151.0,0.0001796,2]
[340816618,1729872638677,-151.0,0.0001796,2]
[340816620,1729872638687,-220.551423,0.0001796,2]
[340816622,1729872638696,-151.0,0.0001796,2]
[340816624,1729872638707,-151.0,0.0001796,2]
[340816626,1729872638716,-151.0,0.0001796,2]
[340816628,1729872638727,-233.620036,0.0001796,2]
[340816630,1729872638736,-151.0,0.0001796,2]
[340816632,1729872638746,-151.0,0.0001796,2]
[340816634,1729872638757,-233.620036,0.0001796,2]
[340816636,1729872638766,-151.0,0.0001796,2]
[340816638,1729872638776,-151.0,0.0001796,2]
[340816640,1729872638785,-151.0,0.0001796,2]
[340816642,1729872638797,-538.015456,0.0001796,2]
[340816644,1729872638807,-538.015456,0.0001796,2]
[340816646,1729872638816,-21045.3603013,0.0001796,2]
[340816648,1729872638826,-10772.43724596,0.0001796,2]
[340816654,1729872638869,-15037.94093874,0.0001796,2]
[340816656,1729872638878,-186.75526507,0.00017969,2]
[340816658,1729872638887,-170.17813583,0.00017969,2]
[340816660,1729872638897,-500.0,0.00017969,2]
[340816662,1729872638907,-273.71612661,0.00017969,2]
[340816664,1729872638917,-151.0,0.0001797,2]
[340816666,1729872638928,-151.0,0.0001797,2]
[340816668,1729872638938,-151.0,0.0001797,2]
[340816670,1729872638947,-151.0,0.0001797,2]
[340816672,1729872638956,-151.0,0.0001797,2]
[340816674,1729872638966,-173.798704,0.0001797,2]
[340816676,1729872638975,-173.798704,0.0001797,2]
[340816678,1729872638984,-151.0,0.0001797,2]
[340816680,1729872638994,-151.0,0.0001797,2]
[340816682,1729872639004,-151.0,0.0001797,2]
[340816684,1729872639013,-151.0,0.0001797,2]
[340816686,1729872639023,-151.0,0.0001797,2]
[340816688,1729872639033,-151.0,0.0001797,2]
[340816691,1729872639045,-151.0,0.0001797,2]
[340816692,1729872639054,-628.441196,0.0001797,2]
[340816694,1729872639064,-628.441196,0.0001797,2]
[340816696,1729872639073,-151.0,0.0001797,2]
[340816698,1729872639082,-151.0,0.0001797,2]
[340816700,1729872639092,-151.0,0.0001797,2]
[340816703,1729872639102,-151.0,0.0001797,2]
[340816705,1729872639112,-151.0,0.0001797,2]
[340816706,1729872639121,-151.0,0.0001797,2]
[340816709,1729872639132,-219.612472,0.0001797,2]
[340816711,1729872639142,-151.0,0.0001797,2]
[340816713,1729872639151,-474.116489,0.0001797,2]
[340816715,1729872639161,-474.116489,0.0001797,2]
[340816717,1729872639171,-151.0,0.0001797,2]
[340816719,1729872639180,-151.0,0.0001797,2]
[340816721,1729872639189,-151.0,0.0001797,2]
[340816723,1729872639198,-151.0,0.0001797,2]
[340816725,1729872639207,-151.0,0.0001797,2]
[340816727,1729872639217,-151.0,0.0001797,2]
[340816729,1729872639227,-151.0,0.0001797,2]
[340816731,1729872639236,-151.0,0.0001797,2]
[340816733,1729872639252,-151.0,0.0001797,2]
[340816735,1729872639261,-151.0,0.0001797,2]
[340816737,1729872639271,-20944.74416024,0.0001797,2]
[340816824,1729872640160,-100.61614106,0.0001797,2]
[340816826,1729872640169,-151.0,0.0001797,2]
[340816828,1729872640179,-151.0,0.0001797,2]
[340816830,1729872640189,-151.0,0.0001797,2]
[340816832,1729872640198,-114.96385894,0.0001797,2]
[340816834,1729872640211,-118.65617706,0.0001797,2]
[340816836,1729872640222,-151.0,0.0001797,2]
[340816838,1729872640231,-151.0,0.0001797,2]
[340816840,1729872640244,-233.620036,0.0001797,2]
[340816841,1729872640254,-40.62358694,0.0001797,2]
[340817130,1729872643154,-110.37641306,0.0001797,2]
[340817132,1729872643164,-151.0,0.0001797,2]
[340817134,1729872643174,-151.0,0.0001797,2]
[340817136,1729872643183,-538.015456,0.0001797,2]
[340817138,1729872643193,-538.015456,0.0001797,2]
[340817140,1729872643203,-151.0,0.0001797,2]
[340817142,1729872643213,-559.704976,0.0001797,2]
[340817144,1729872643223,-559.704976,0.0001797,2]
[340817146,1729872643233,-151.0,0.0001797,2]
[340817148,1729872643245,-151.0,0.0001797,2]
[340817150,1729872643255,-151.0,0.0001797,2]
[340817152,1729872643265,-165.395167,0.0001797,2]
[340817154,1729872643276,-202.993901,0.0001797,2]
[340817156,1729872643286,-202.993901,0.0001797,2]
[340817158,1729872643301,-308.248586,0.0001797,2]
[340817160,1729872643312,-308.248586,0.0001797,2]
[340817162,1729872643323,-254.264818,0.0001797,2]
[340817164,1729872643334,-834.37583904,0.0001797,2]
[340817392,1729872645951,-2365.62416096,0.0001797,2]
[340817394,1729872645961,-641.382,0.0001797,2]
[340817396,1729872645970,-25810.3781847,0.0001797,2]
[340817397,1729872645981,-500.0,0.00017973,2]
[340817399,1729872645991,-500.0,0.00017973,2]
[340817401,1729872646001,-500.0,0.00017973,2]
[340817403,1729872646010,-500.0,0.00017973,2]
[340817405,1729872646020,-500.0,0.00017973,2]
[340817407,1729872646031,-500.0,0.00017973,2]
[340817408,1729872646041,-151.0,0.00017973,2]
[340817410,1729872646054,-559.704976,0.00017973,2]
[340817411,1729872646063,-559.704976,0.00017973,2]
[340817412,1729872646074,-151.0,0.00017973,2]
[340817413,1729872646083,-151.0,0.00017973,2]
[340817415,1729872646092,-151.0,0.00017973,2]
[340817417,1729872646103,-202.993901,0.00017973,2]
[340817419,1729872646113,-202.993901,0.00017973,2]
[340817421,1729872646124,-308.248586,0.00017973,2]
[340817423,1729872646134,-308.248586,0.00017973,2]
[340817424,1729872646144,-176.893658,0.0001798,2]
[340817426,1729872646154,-151.0,0.0001798,2]
[340817427,1729872646164,-151.0,0.0001798,2]
[340817428,1729872646174,-151.0,0.0001798,2]
[340817429,1729872646185,-155.361776,0.0001798,2]
[340817430,1729872646195,-151.0,0.0001798,2]
[340817431,1729872646205,-151.0,0.0001798,2]
[340817432,1729872646214,-199.457496,0.0001798,2]
[340817433,1729872646223,-173.798704,0.0001798,2]
[340817434,1729872646234,-173.798704,0.0001798,2]
[340817435,1729872646249,-173.798704,0.0001798,2]
[340817436,1729872646260,-173.798704,0.0001798,2]
[340817437,1729872646270,-151.0,0.0001798,2]
[340817438,1729872646280,-151.0,0.0001798,2]
[340817439,1729872646291,-151.0,0.0001798,2]
[340817440,1729872646303,-151.0,0.0001798,2]
[340817441,1729872646313,-151.0,0.0001798,2]
[340817442,1729872646323,-151.0,0.0001798,2]
[340817443,1729872646333,-151.0,0.0001798,2]
[340817444,1729872646342,-151.0,0.0001798,2]
[340817445,1729872646352,-161.860257,0.0001798,2]
[340817446,1729872646362,-151.0,0.0001798,2]
[340817447,1729872646372,-151.0,0.0001798,2]
[340817448,1729872646383,-265.56364,0.0001798,2]
[340817449,1729872646393,-628.441196,0.0001798,2]
[340817450,1729872646403,-628.441196,0.0001798,2]
[340817451,1729872646415,-151.0,0.0001798,2]
[340817452,1729872646425,-151.0,0.0001798,2]
[340817453,1729872646434,-151.0,0.0001798,2]
[340817454,1729872646444,-285.78665,0.0001798,2]
[340817455,1729872646455,-232.305312,0.0001798,2]
[340817456,1729872646464,-151.0,0.0001798,2]
[340817457,1729872646475,-474.116489,0.0001798,2]
[340817458,1729872646484,-474.116489,0.0001798,2]
[340817459,1729872646494,-151.0,0.0001798,2]
[340817460,1729872646504,-151.0,0.0001798,2]
[340817461,1729872646514,-151.0,0.0001798,2]
[340817462,1729872646524,-151.0,0.0001798,2]
[340817463,1729872646534,-151.0,0.0001798,2]
[340817464,1729872646545,-151.0,0.0001798,2]
[340817465,1729872646556,-151.0,0.0001798,2]
[340817466,1729872646565,-151.0,0.0001798,2]
[340817467,1729872646575,-293.986892,0.0001798,2]
[340817468,1729872646585,-151.0,0.0001798,2]
[340817469,1729872646594,-151.0,0.0001798,2]
[340817470,1729872646606,-151.0,0.0001798,2]
[340817471,1729872646615,-151.0,0.0001798,2]
[340817472,1729872646625,-233.620036,0.0001798,2]
[340817473,1729872646636,-151.0,0.0001798,2]
[340817474,1729872646645,-233.620036,0.0001798,2]
[340817475,1729872646655,-151.0,0.0001798,2]
[340817476,1729872646664,-151.0,0.0001798,2]
[340817477,1729872646673,-151.0,0.0001798,2]
[340817478,1729872646682,-538.015456,0.0001798,2]
[340817479,1729872646692,-538.015456,0.0001798,2]
[340817480,1729872646701,-151.0,0.0001798,2]
[340817481,1729872646711,-559.704976,0.0001798,2]
[340817482,1729872646720,-559.704976,0.0001798,2]
[340817483,1729872646730,-151.0,0.0001798,2]
[340817484,1729872646739,-167.223568,0.0001798,2]
[340817485,1729872646748,-151.0,0.0001798,2]
[340817486,1729872646757,-202.993901,0.0001798,2]
[340817487,1729872646768,-202.993901,0.0001798,2]
[340817488,1729872646778,-308.248586,0.0001798,2]
[340817489,1729872646789,-308.248586,0.0001798,2]
[340817490,1729872646801,-25810.3781847,0.0001798,2]
[340817491,1729872646813,-42090.7206026,0.0001798,2]
[340817492,1729872646822,-151.0,0.0001799,2]
[340817493,1729872646831,-151.0,0.0001799,2]
[340817494,1729872646840,-173.798704,0.0001799,2]
[340817495,1729872646849,-173.798704,0.0001799,2]
[340817496,1729872646859,-151.0,0.0001799,2]
[340817497,1729872646868,-151.0,0.0001799,2]
[340817498,1729872646877,-151.0,0.0001799,2]
[340817499,1729872646886,-151.0,0.0001799,2]
[340817500,1729872646896,-151.0,0.0001799,2]
[340817501,1729872646907,-628.441196,0.0001799,2]
[340817502,1729872646918,-628.441196,0.0001799,2]
[340817503,1729872646927,-151.0,0.0001799,2]
[340817504,1729872646937,-151.0,0.0001799,2]
[340817505,1729872646947,-151.0,0.0001799,2]
[340817506,1729872646957,-474.116489,0.0001799,2]
[340817507,1729872646966,-474.116489,0.0001799,2]
[340817508,1729872646975,-151.0,0.0001799,2]
[340817509,1729872646984,-151.0,0.0001799,2]
[340817510,1729872646993,-151.0,0.0001799,2]
[340817511,1729872647002,-151.0,0.0001799,2]
[340817512,1729872647012,-151.0,0.0001799,2]
[340817513,1729872647021,-151.0,0.0001799,2]
[340817514,1729872647031,-151.0,0.0001799,2]
[340817515,1729872647041,-151.0,0.0001799,2]
[340817516,1729872647053,-51620.7563694,0.0001799,2]
[340817517,1729872647062,-151.0,0.0001799,2]
[340817518,1729872647071,-21045.3603013,0.0001799,2]
[340817519,1729872647080,-151.0,0.0001799,2]
[340817520,1729872647090,-151.0,0.0001799,2]
[340817521,1729872647100,-151.0,0.0001799,2]
[340817522,1729872647110,-233.620036,0.0001799,2]
[340817523,1729872647119,-151.0,0.0001799,2]
[340817524,1729872647129,-233.620036,0.0001799,2]
[340817525,1729872647138,-151.0,0.0001799,2]
[340817526,1729872647148,-277.70759802,0.0001799,2]
[340817527,1729872647157,-151.0,0.0001799,2]
[340817528,1729872647167,-538.015456,0.0001799,2]
[340817529,1729872647176,-538.015456,0.0001799,2]
[340817530,1729872647185,-559.704976,0.0001799,2]
[340817531,1729872647195,-559.704976,0.0001799,2]
[340817532,1729872647205,-151.0,0.0001799,2]
[340817533,1729872647214,-151.0,0.0001799,2]
[340817534,1729872647225,-202.993901,0.0001799,2]
[340817535,1729872647237,-202.993901,0.0001799,2]
[340817536,1729872647249,-308.248586,0.0001799,2]
[340817537,1729872647260,-308.248586,0.0001799,2]
[340817538,1729872647269,-61980.32719939,0.00018,2]
[340817539,1729872647283,-12264.205147,0.00018,2]
[340817540,1729872647296,-4252.34368297,0.00018,2]
[340817541,1729872647308,-97.19936838,0.00018,2]
[340817542,1729872647319,-151.0,0.00018,2]
[340817543,1729872647329,-151.0,0.00018,2]
[340817544,1729872647338,-176.03,0.00018,2]
[340817545,1729872647347,-84.94063162,0.00018,2]
[340817546,1729872647410,-91.08936838,0.00018,2]
[340817547,1729872647420,-173.798704,0.00018,2]
[340817548,1729872647429,-173.798704,0.00018,2]
[340817549,1729872647439,-151.0,0.00018,2]
[340817550,1729872647449,-151.0,0.00018,2]
[340817551,1729872647459,-151.0,0.00018,2]
[340817552,1729872647468,-100.31822362,0.00018,2]
[340817553,1729872647481,-50.68177638,0.00018,2]
[340817554,1729872647490,-151.0,0.00018,2]
[340817555,1729872647500,-628.441196,0.00018,2]
[340817556,1729872647509,-628.441196,0.00018,2]
[340817557,1729872647521,-151.0,0.00018,2]
[340817558,1729872647531,-289.724367,0.00018,2]
[340817559,1729872647540,-151.0,0.00018,2]
[340817560,1729872647552,-474.116489,0.00018,2]
[340817561,1729872647560,-474.116489,0.00018,2]
[340817562,1729872647571,-151.0,0.00018,2]
[340817563,1729872647580,-151.0,0.00018,2]
[340817564,1729872647590,-151.0,0.00018,2]
[340817565,1729872647600,-151.0,0.00018,2]
[340817566,1729872647610,-274.430366,0.00018,2]
[340817567,1729872647620,-151.0,0.00018,2]
[340817568,1729872647629,-151.0,0.00018,2]
[340817569,1729872647638,-151.0,0.00018,2]
[340817570,1729872647648,-151.0,0.00018,2]
[340817571,1729872647657,-151.0,0.00018,2]
[340817572,1729872647667,-233.620036,0.00018,2]
[340817573,1729872647676,-151.0,0.00018,2]
[340817574,1729872647687,-233.620036,0.00018,2]
[340817575,1729872647696,-151.0,0.00018,2]
[340817576,1729872647705,-151.0,0.00018,2]
[340817577,1729872647715,-56.9257749,0.00018,2]
[340817578,1729872647824,151.93,0.00010959,2]
[340817579,1729872658005,151.93,0.00010959,2]
[340817580,1729872668587,607.74,0.00010959,2]
[340817582,1729873540141,1000.0,0.00023,120]
[340817609,1729873832131,-400.0,0.00013973,2]
[340817610,1729873832142,-488.95850176,0.00015,5]
[340817611,1729873832151,-788.85255122,0.000155,2]
[340817612,1729873832162,-819.01744878,0.000155,2]
[340817613,1729873832172,-211.760428,0.00016579,2]
[340817614,1729873832181,-2035.112641,0.00016688,2]
[340817615,1729873832192,-159.090909,0.00016807,2]
[340817616,1729873832201,-453.055,0.0001731,2]
[340817617,1729873832210,-2035.112641,0.00017373,2]
[340817618,1729873832220,-300.0,0.00017756,2]
[340817619,1729873832229,-300.0,0.00017756,2]
[340817620,1729873832239,-5592.60115101,0.00017757,2]
[340817621,1729873832249,-675.071834,0.0001778,2]
[340817622,1729873832258,-153.0,0.00017808,2]
[340817623,1729873832267,-153.0,0.00017808,2]
[340817624,1729873832276,-153.0,0.00017808,2]
[340817625,1729873832288,-7228.26202219,0.0001782,2]
[340817626,1729873832303,-4987.36352044,0.0001782,2]
[340817627,1729873832313,-157.44084034,0.00017999,2]
[340817628,1729873832322,-2035.112641,0.00018058,2]
[340817629,1729873832331,-151.0,0.00018082,2]
[340817630,1729873832340,-2500.0,0.00018147,2]
[340817631,1729873832350,-2500.0,0.00018155,2]
[340817632,1729873832359,-2500.0,0.00018164,2]
[340817633,1729873832369,-322.78021273,0.00018173,2]
[340817634,1729873832378,-1005.92182951,0.00018173,2]
[340817635,1729873832387,-2500.0,0.00018173,2]
[340817636,1729873832397,-2500.0,0.00018173,2]
[340817637,1729873832406,-151.0,0.00018356,2]
[340817638,1729873832415,-153.5134624,0.00018575,2]
[340817639,1729873832424,-151.0,0.0001863,2]
[340817640,1729873832433,-171281.74427605,0.000188,2]
[340817882,1729873840237,-55668.72468337,0.000188,2]
[340817894,1729873840350,-13396.4,0.000188,2]
[340818101,1729873848851,-1652.925,0.000188,2]
[340818102,1729873849108,-1355.8,0.000188,2]
[340818103,1729873849120,-464.38463781,0.000188,2]
[340818104,1729873849132,-664.65301874,0.000188,2]
[340818105,1729873849144,-134932.7408111,0.000188,2]
[340818106,1729873849157,-1300.0,0.000188,2]
[340818107,1729873849174,-461.81211323,0.000188,2]
[340818109,1729874802455,273.37336231,9.9e-05,2]
[340818110,1729874810265,273.37336231,9.9e-05,2]
[340818111,1729874818337,273.37336231,9.9e-05,2]
[340818112,1729874826399,273.37336231,9.9e-05,2]
[340818113,1729874834960,273.37336231,9.9e-05,2]